[Event "*** Titled Tuesday Blitz"]
[Site "Chess.com"]
[Date "2018.11.06"]
[Round "1"]
[White "Samuray111"]
[Black "andrzej"]
[Result "1-0"]
[WhiteElo "2601"]
[BlackElo "2228"]
[TimeControl "180+2"]
[EndTime "13:09:38 PST"]
[Termination "Samuray111 won by resignation"]

1. Nf3 {[%clk 0:03:01.7]} 1... Nf6 {[%clk 0:03:00.4]} 2. d4 {[%clk 0:03:01.2]}
2... b6 {[%clk 0:02:57.7]} 3. Bf4 {[%clk 0:03:02]} 3... Nh5 {[%clk 0:02:58.7]}
4. Bg5 {[%clk 0:03:01.9]} 4... h6 {[%clk 0:02:59.6]} 5. Bc1 {[%clk 0:03:03.1]}
5... Bb7 {[%clk 0:02:57.7]} 6. Nbd2 {[%clk 0:03:03]} 6... Nf6 {[%clk 0:02:58.3]}
7. g3 {[%clk 0:03:04]} 7... c5 {[%clk 0:02:58.6]} 8. c3 {[%clk 0:03:02.7]} 8...
e6 {[%clk 0:02:59.6]} 9. Bg2 {[%clk 0:03:04]} 9... Be7 {[%clk 0:02:58.7]} 10.
O-O {[%clk 0:03:04.8]} 10... O-O {[%clk 0:02:59.7]} 11. Re1 {[%clk 0:03:03]}
11... d5 {[%clk 0:03:00.2]} 12. b3 {[%clk 0:02:47.8]} 12... Nc6 {[%clk
0:02:58.5]} 13. Bb2 {[%clk 0:02:49]} 13... Rc8 {[%clk 0:02:48.4]} 14. e3 {[%clk
0:02:48.4]} 14... Qc7 {[%clk 0:02:44.5]} 15. Rc1 {[%clk 0:02:48.3]} 15... Rfd8
{[%clk 0:02:45.1]} 16. Qe2 {[%clk 0:02:47.6]} 16... Qb8 {[%clk 0:02:45.3]} 17.
Red1 {[%clk 0:02:41.9]} 17... cxd4 {[%clk 0:02:43.5]} 18. exd4 {[%clk
0:02:41.3]} 18... Bd6 {[%clk 0:02:37.7]} 19. Re1 {[%clk 0:02:41.2]} 19... Ne7
{[%clk 0:02:37.8]} 20. Ne5 {[%clk 0:02:41.1]} 20... Nf5 {[%clk 0:02:35.3]} 21.
Nxf7 {[%clk 0:02:40.2]} 21... Re8 {[%clk 0:02:24.9]} 22. Nxd6 {[%clk 0:02:38.5]}
22... Qxd6 {[%clk 0:02:20.3]} 23. Nf3 {[%clk 0:02:38]} 23... Ne4 {[%clk
0:02:19.3]} 24. Ne5 {[%clk 0:02:36]} 24... Rcd8 {[%clk 0:01:58.2]} 25. f3 {[%clk
0:02:36.1]} 25... Nf6 {[%clk 0:01:58.7]} 26. Rcd1 {[%clk 0:02:19]} 26... Qc7
{[%clk 0:01:55.4]} 27. Qd3 {[%clk 0:02:15.2]} 27... Qc8 {[%clk 0:01:51.7]} 28.
Bf1 {[%clk 0:02:12.1]} 28... a6 {[%clk 0:01:30.5]} 29. Rd2 {[%clk 0:02:08.8]}
29... b5 {[%clk 0:01:30.9]} 30. Rde2 {[%clk 0:02:09.4]} 30... Qc7 {[%clk
0:01:24.9]} 31. Bh3 {[%clk 0:02:07.5]} 31... Nd6 {[%clk 0:01:08.3]} 32. Ng6
{[%clk 0:02:04.6]} 32... Bc8 {[%clk 0:00:59]} 33. Nf4 {[%clk 0:01:46.9]} 33...
Qf7 {[%clk 0:00:47.1]} 34. Bxe6 {[%clk 0:01:41.6]} 34... Bxe6 {[%clk 0:00:46.6]}
35. Nxe6 {[%clk 0:01:42.9]} 35... Rc8 {[%clk 0:00:43.2]} 36. Ba3 {[%clk
0:01:40]} 36... Nb7 {[%clk 0:00:34.6]} 37. Nf4 {[%clk 0:01:39.8]} 37... Rcd8
{[%clk 0:00:20.5]} 38. Ng6 {[%clk 0:01:35.4]} 38... Ne4 {[%clk 0:00:17.4]} 39.
Ne5 {[%clk 0:01:31.5]} 39... Rxe5 {[%clk 0:00:18]} 40. dxe5 {[%clk 0:01:31.7]}
40... Ng5 {[%clk 0:00:18.5]} 41. Rf1 {[%clk 0:01:17.2]} 41... Re8 {[%clk
0:00:16.3]} 42. h4 {[%clk 0:01:11.4]} 42... Ne6 {[%clk 0:00:15.6]} 43. f4 {[%clk
0:01:05.5]} 43... Rd8 {[%clk 0:00:11.6]} 44. Rd1 {[%clk 0:01:04.8]} 44... Nec5
{[%clk 0:00:12.1]} 45. Bxc5 {[%clk 0:01:02.9]} 45... Nxc5 {[%clk 0:00:14]} 46.
Qf3 {[%clk 0:01:04.4]} 46... Qg6 {[%clk 0:00:08.9]} 47. Kg2 {[%clk 0:01:04.5]}
47... Ne6 {[%clk 0:00:07.4]} 48. f5 {[%clk 0:01:05]} 48... Qf7 {[%clk
0:00:04.8]} 49. fxe6 {[%clk 0:01:05.1]} 49... Qxe6 {[%clk 0:00:06.7]} 50. g4
{[%clk 0:01:03.7]} 50... Re8 {[%clk 0:00:07.4]} 51. Qf5 {[%clk 0:01:04.6]} 51...
Qb6 {[%clk 0:00:08.1]} 52. Rd4 {[%clk 0:01:05.2]} 52... a5 {[%clk 0:00:08.2]}
53. e6 {[%clk 0:01:06.1]} 53... a4 {[%clk 0:00:08.8]} 54. Qf7+ {[%clk
0:01:06.7]} 54... Kh7 {[%clk 0:00:08.9]} 55. Qxe8 {[%clk 0:01:07.1]} 1-0

[Event "*** Titled Tuesday Blitz"]
[Site "Chess.com"]
[Date "2018.11.06"]
[Round "1"]
[White "nubair1198"]
[Black "BvsN"]
[Result "0-1"]
[WhiteElo "2528"]
[BlackElo "2220"]
[TimeControl "180+2"]
[EndTime "13:09:38 PST"]
[Termination "BvsN won by resignation"]

1. d4 {[%clk 0:02:36.4]} 1... d5 {[%clk 0:02:56]} 2. c4 {[%clk 0:02:34.4]} 2...
c6 {[%clk 0:02:55.6]} 3. Nf3 {[%clk 0:02:35.8]} 3... Nf6 {[%clk 0:02:55.3]} 4.
Nc3 {[%clk 0:02:36.2]} 4... e6 {[%clk 0:02:56]} 5. Bg5 {[%clk 0:02:37.5]} 5...
Be7 {[%clk 0:02:56.2]} 6. e3 {[%clk 0:02:38.5]} 6... O-O {[%clk 0:02:55.7]} 7.
Qc2 {[%clk 0:02:39.7]} 7... Nbd7 {[%clk 0:02:56.6]} 8. Rd1 {[%clk 0:02:41]} 8...
h6 {[%clk 0:02:53.9]} 9. Bh4 {[%clk 0:02:41.8]} 9... b6 {[%clk 0:02:54.1]} 10.
a3 {[%clk 0:02:41.2]} 10... Bb7 {[%clk 0:02:52.4]} 11. Bd3 {[%clk 0:02:42.3]}
11... Rc8 {[%clk 0:02:45.3]} 12. O-O {[%clk 0:02:43.4]} 12... c5 {[%clk
0:02:08.7]} 13. cxd5 {[%clk 0:02:43.9]} 13... Nxd5 {[%clk 0:02:07.8]} 14. Bxe7
{[%clk 0:02:45.8]} 14... Qxe7 {[%clk 0:02:08.2]} 15. Bh7+ {[%clk 0:02:40]} 15...
Kh8 {[%clk 0:02:08.6]} 16. Be4 {[%clk 0:02:32.1]} 16... Nxc3 {[%clk 0:01:56.9]}
17. Bxb7 {[%clk 0:02:31]} 17... Nxd1 {[%clk 0:01:54.2]} 18. Bxc8 {[%clk
0:02:32.4]} 18... Nxe3 {[%clk 0:01:40.6]} 19. fxe3 {[%clk 0:02:32.6]} 19... Rxc8
{[%clk 0:01:41.1]} 20. h3 {[%clk 0:02:30.3]} 20... Qd6 {[%clk 0:01:23.6]} 21.
Rd1 {[%clk 0:02:18.3]} 21... Nf6 {[%clk 0:01:01.3]} 22. b4 {[%clk 0:02:01.6]}
22... c4 {[%clk 0:00:57.8]} 23. e4 {[%clk 0:02:03]} 23... Qe7 {[%clk 0:00:48.2]}
24. Ne5 {[%clk 0:02:03]} 24... b5 {[%clk 0:00:45.9]} 25. a4 {[%clk 0:02:02.6]}
25... a6 {[%clk 0:00:44.5]} 26. axb5 {[%clk 0:02:00.4]} 26... axb5 {[%clk
0:00:45]} 27. Ra1 {[%clk 0:02:00.8]} 27... Qxb4 {[%clk 0:00:39.2]} 28. Nxf7+
{[%clk 0:02:01.3]} 28... Kg8 {[%clk 0:00:39.4]} 29. Ra7 {[%clk 0:01:59.5]} 29...
Qe1+ {[%clk 0:00:36.7]} 30. Kh2 {[%clk 0:01:59.1]} 30... Qxe4 {[%clk 0:00:33.8]}
31. Qf2 {[%clk 0:02:00.5]} 31... Rf8 {[%clk 0:00:18.7]} 32. Nxh6+ {[%clk
0:01:57.8]} 32... gxh6 {[%clk 0:00:14.3]} 33. Qg3+ {[%clk 0:01:59.3]} 33... Ng4+
{[%clk 0:00:15.3]} 34. hxg4 {[%clk 0:01:58.6]} 34... Qf4 {[%clk 0:00:16.3]} 35.
Rb7 {[%clk 0:01:55.4]} 35... Qxg3+ {[%clk 0:00:16.7]} 36. Kxg3 {[%clk
0:01:57.1]} 36... Rd8 {[%clk 0:00:11.8]} 37. Rxb5 {[%clk 0:01:23.5]} 37... Rxd4
{[%clk 0:00:12.8]} 38. Rb7 {[%clk 0:01:25.1]} 38... Rd3+ {[%clk 0:00:09.6]} 39.
Kf4 {[%clk 0:01:26.1]} 39... c3 {[%clk 0:00:08.1]} 40. Rc7 {[%clk 0:01:27.6]}
40... Rd2 {[%clk 0:00:06.5]} 41. g3 {[%clk 0:01:21.9]} 41... c2 {[%clk
0:00:06.7]} 42. Ke5 {[%clk 0:01:23.4]} 42... Rg2 {[%clk 0:00:06.7]} 43. Kxe6
{[%clk 0:01:19.6]} 43... Rxg3 {[%clk 0:00:07]} 44. Kf5 {[%clk 0:01:21.2]} 44...
Rg2 {[%clk 0:00:07.1]} 45. Kf4 {[%clk 0:01:20.7]} 45... Kf8 {[%clk 0:00:06.2]}
46. Kf5 {[%clk 0:01:20.5]} 46... Ke8 {[%clk 0:00:05.7]} 47. Kg6 {[%clk
0:01:15.9]} 47... Rxg4+ {[%clk 0:00:05.6]} 48. Kxh6 {[%clk 0:01:15.9]} 48... Rg2
{[%clk 0:00:06.7]} 49. Kh5 {[%clk 0:01:16.6]} 49... Kd8 {[%clk 0:00:07.4]} 50.
Rc3 {[%clk 0:01:17]} 50... Kd7 {[%clk 0:00:08.3]} 51. Kh4 {[%clk 0:01:18.6]}
51... Kd6 {[%clk 0:00:09.1]} 52. Kh3 {[%clk 0:01:20.1]} 52... Rd2 {[%clk
0:00:07.1]} 53. Rc8 {[%clk 0:01:15.9]} 53... Ke5 {[%clk 0:00:06.6]} 54. Kg3
{[%clk 0:01:16.8]} 54... Ke4 {[%clk 0:00:07.4]} 55. Rc7 {[%clk 0:01:17]} 55...
Ke3 {[%clk 0:00:06.3]} 56. Rc8 {[%clk 0:01:17.5]} 56... Ke2 {[%clk 0:00:06.6]}
57. Kf4 {[%clk 0:01:18.1]} 57... Kd1 {[%clk 0:00:07.2]} 58. Rh8 {[%clk
0:01:07.9]} 58... c1=Q {[%clk 0:00:08]} 59. Rh1+ {[%clk 0:01:09]} 59... Kc2
{[%clk 0:00:09.2]} 60. Rxc1+ {[%clk 0:01:10.9]} 60... Kxc1 {[%clk 0:00:10.5]}
61. Ke3 {[%clk 0:01:12.8]} 61... Kc2 {[%clk 0:00:12]} 62. Ke4 {[%clk 0:01:13.7]}
62... Rd3 {[%clk 0:00:13.5]} 63. Ke5 {[%clk 0:01:15.6]} 63... Kc3 {[%clk
0:00:14.9]} 64. Kf4 {[%clk 0:01:17.5]} 64... Kd4 {[%clk 0:00:15.4]} 65. Kf5
{[%clk 0:01:17.1]} 65... Re3 {[%clk 0:00:16.5]} 66. Kg4 {[%clk 0:01:19]} 66...
Ke5 {[%clk 0:00:17.3]} 67. Kg5 {[%clk 0:01:20.2]} 67... Rg3+ {[%clk 0:00:18.2]}
68. Kh4 {[%clk 0:01:21.9]} 68... Kf4 {[%clk 0:00:19.3]} 69. Kh5 {[%clk
0:01:23.4]} 69... Rg4 {[%clk 0:00:20.5]} 70. Kh6 {[%clk 0:01:24.4]} 70... Rg5
{[%clk 0:00:21.9]} 71. Kh7 {[%clk 0:01:25.7]} 71... Kf5 {[%clk 0:00:23.3]} 72.
Kh8 {[%clk 0:01:27.2]} 72... Rg6 {[%clk 0:00:23.4]} 73. Kh7 {[%clk 0:01:29.1]}
73... Kf6 {[%clk 0:00:24.7]} 74. Kh8 {[%clk 0:01:30.7]} 74... Kf7 {[%clk
0:00:25]} 75. Kh7 {[%clk 0:01:31.2]} 75... Rf6 {[%clk 0:00:26.3]} 0-1

[Event "*** Titled Tuesday Blitz"]
[Site "Chess.com"]
[Date "2018.11.06"]
[Round "1"]
[White "Denis_Makhnyov"]
[Black "woodhy"]
[Result "0-1"]
[WhiteElo "2789"]
[BlackElo "2442"]
[TimeControl "180+2"]
[EndTime "13:09:40 PST"]
[Termination "woodhy won by checkmate"]

1. d4 {[%clk 0:03:01.3]} 1... d6 {[%clk 0:02:34.5]} 2. Nf3 {[%clk 0:02:59.9]}
2... Nd7 {[%clk 0:02:34.4]} 3. e4 {[%clk 0:02:59.8]} 3... Ngf6 {[%clk
0:02:35.2]} 4. Nc3 {[%clk 0:03:00.4]} 4... g6 {[%clk 0:02:34.3]} 5. Bc4 {[%clk
0:03:00.1]} 5... Bg7 {[%clk 0:02:34.8]} 6. O-O {[%clk 0:03:00.8]} 6... O-O
{[%clk 0:02:35.6]} 7. Re1 {[%clk 0:03:01.6]} 7... e5 {[%clk 0:02:36.9]} 8. a4
{[%clk 0:02:58.6]} 8... exd4 {[%clk 0:02:32.9]} 9. Nxd4 {[%clk 0:02:59.4]} 9...
Nc5 {[%clk 0:02:34.8]} 10. Bg5 {[%clk 0:02:55]} 10... h6 {[%clk 0:02:35.3]} 11.
Bh4 {[%clk 0:02:55.9]} 11... Re8 {[%clk 0:02:34.9]} 12. f3 {[%clk 0:02:55.3]}
12... Ne6 {[%clk 0:02:34.1]} 13. Nb3 {[%clk 0:02:49.5]} 13... g5 {[%clk
0:02:30.9]} 14. Bf2 {[%clk 0:02:48.3]} 14... Nf4 {[%clk 0:02:31.4]} 15. Qd2
{[%clk 0:02:42.8]} 15... Be6 {[%clk 0:02:32.3]} 16. Bf1 {[%clk 0:02:41.3]} 16...
Bxb3 {[%clk 0:02:32.2]} 17. cxb3 {[%clk 0:02:41.6]} 17... a6 {[%clk 0:02:31.8]}
18. Rad1 {[%clk 0:02:38.3]} 18... Qe7 {[%clk 0:02:32.3]} 19. b4 {[%clk
0:02:34.9]} 19... Rad8 {[%clk 0:02:27.1]} 20. g3 {[%clk 0:02:26.7]} 20... Ng6
{[%clk 0:02:27.2]} 21. b5 {[%clk 0:02:17]} 21... axb5 {[%clk 0:02:27.9]} 22.
Nxb5 {[%clk 0:02:17.2]} 22... Ra8 {[%clk 0:02:27.5]} 23. b3 {[%clk 0:02:15]}
23... Ne5 {[%clk 0:02:27.4]} 24. Bg2 {[%clk 0:02:13.8]} 24... Nc6 {[%clk
0:02:28.2]} 25. Nc3 {[%clk 0:02:08.3]} 25... Na5 {[%clk 0:02:24.9]} 26. Qc2
{[%clk 0:02:06.6]} 26... b6 {[%clk 0:02:20.6]} 27. Nb5 {[%clk 0:02:05.2]} 27...
Rac8 {[%clk 0:02:18.4]} 28. Nd4 {[%clk 0:02:05.5]} 28... Qd7 {[%clk 0:02:13.4]}
29. b4 {[%clk 0:01:47.3]} 29... c5 {[%clk 0:02:08.8]} 30. Nf5 {[%clk 0:01:35.1]}
30... cxb4 {[%clk 0:02:08.4]} 31. Qb2 {[%clk 0:01:36.5]} 31... Qxa4 {[%clk
0:02:04]} 32. Nxg7 {[%clk 0:01:31.2]} 32... Kxg7 {[%clk 0:02:05.9]} 33. Rxd6
{[%clk 0:01:32]} 33... Re6 {[%clk 0:02:05]} 34. Rxe6 {[%clk 0:01:20.7]} 34...
fxe6 {[%clk 0:02:06.9]} 35. Bd4 {[%clk 0:01:22.3]} 35... Rf8 {[%clk 0:02:07.3]}
36. Rc1 {[%clk 0:01:23.5]} 36... Nc6 {[%clk 0:02:02.2]} 37. Bxb6 {[%clk
0:01:23.4]} 37... Qb5 {[%clk 0:01:59.1]} 38. Bf2 {[%clk 0:01:20.1]} 38... e5
{[%clk 0:01:53.9]} 39. Rc5 {[%clk 0:01:18.7]} 39... Qb7 {[%clk 0:01:55]} 40. Bf1
{[%clk 0:01:11.5]} 40... Rd8 {[%clk 0:01:50.7]} 41. Kg2 {[%clk 0:01:03.8]} 41...
g4 {[%clk 0:01:50]} 42. fxg4 {[%clk 0:00:49]} 42... Nxe4 {[%clk 0:01:47.4]} 43.
Rb5 {[%clk 0:00:50.5]} 43... Qf7 {[%clk 0:01:42.8]} 44. Be3 {[%clk 0:00:52]}
44... Rd2+ {[%clk 0:01:38.6]} 45. Bxd2 {[%clk 0:00:42.3]} 45... Qf2+ {[%clk
0:01:38.4]} 46. Kh3 {[%clk 0:00:43.8]} 46... Qxf1+ {[%clk 0:01:26.8]} 47. Kh4
{[%clk 0:00:45.3]} 47... Qxb5 {[%clk 0:01:24.2]} 48. Be3 {[%clk 0:00:46.7]}
48... Qd5 {[%clk 0:01:21.6]} 49. Qa1 {[%clk 0:00:46.8]} 49... Qe6 {[%clk
0:01:16.6]} 50. Qa6 {[%clk 0:00:46.7]} 50... Nf6 {[%clk 0:01:16.1]} 51. h3
{[%clk 0:00:41.5]} 51... Ne7 {[%clk 0:01:12.8]} 52. Qb7 {[%clk 0:00:39.3]} 52...
Qf7 {[%clk 0:01:13.1]} 53. Bxh6+ {[%clk 0:00:35.3]} 53... Kxh6 {[%clk 0:01:15]}
54. g5+ {[%clk 0:00:36.6]} 54... Kg6 {[%clk 0:01:16.4]} 55. g4 {[%clk
0:00:31.6]} 55... Qh7+ {[%clk 0:01:03.4]} 56. Kg3 {[%clk 0:00:32.5]} 56... Kxg5
{[%clk 0:01:02.7]} 57. Qxb4 {[%clk 0:00:32.6]} 57... Qd3+ {[%clk 0:00:58.8]} 58.
Kg2 {[%clk 0:00:33.9]} 58... Ned5 {[%clk 0:00:58.3]} 59. h4+ {[%clk 0:00:28.3]}
59... Kxh4 {[%clk 0:00:58.3]} 60. Qe1+ {[%clk 0:00:29.1]} 60... Kxg4 {[%clk
0:00:55.2]} 61. Qxe5 {[%clk 0:00:30.3]} 61... Nf4+ {[%clk 0:00:54]} 62. Kf2
{[%clk 0:00:30.9]} 62... Qf3+ {[%clk 0:00:50.5]} 63. Ke1 {[%clk 0:00:30.3]}
63... Nd3+ {[%clk 0:00:51.7]} 64. Kd2 {[%clk 0:00:32.2]} 64... Nxe5 {[%clk
0:00:53.6]} 65. Kc2 {[%clk 0:00:33.1]} 65... Qd3+ {[%clk 0:00:54.7]} 66. Kb2
{[%clk 0:00:35]} 66... Qc4 {[%clk 0:00:54.9]} 67. Ka1 {[%clk 0:00:36.9]} 67...
Qb5 {[%clk 0:00:56.2]} 68. Ka2 {[%clk 0:00:38.4]} 68... Nc4 {[%clk 0:00:57.4]}
69. Ka1 {[%clk 0:00:39.8]} 69... Qb2# {[%clk 0:00:59.3]} 0-1

[Event "*** Titled Tuesday Blitz"]
[Site "Chess.com"]
[Date "2018.11.06"]
[Round "1"]
[White "GrigorGrigorov"]
[Black "ajkom197"]
[Result "1/2-1/2"]
[WhiteElo "2673"]
[BlackElo "2329"]
[TimeControl "180+2"]
[EndTime "13:09:42 PST"]
[Termination "Game drawn by agreement"]

1. d4 {[%clk 0:03:01.9]} 1... e6 {[%clk 0:02:59.8]} 2. Nf3 {[%clk 0:02:59.8]}
2... Nf6 {[%clk 0:03:00.5]} 3. c4 {[%clk 0:02:59.9]} 3... d5 {[%clk 0:03:00.7]}
4. g3 {[%clk 0:03:00.6]} 4... Be7 {[%clk 0:02:59.3]} 5. Bg2 {[%clk 0:03:01.4]}
5... O-O {[%clk 0:02:59.4]} 6. O-O {[%clk 0:03:02.4]} 6... b6 {[%clk 0:02:58.6]}
7. Qc2 {[%clk 0:03:01.3]} 7... Bb7 {[%clk 0:02:59]} 8. Rd1 {[%clk 0:03:01.7]}
8... dxc4 {[%clk 0:02:57.9]} 9. Qxc4 {[%clk 0:03:01.3]} 9... Nbd7 {[%clk
0:02:54.7]} 10. Nc3 {[%clk 0:03:02.3]} 10... Nd5 {[%clk 0:02:41.3]} 11. Qb3
{[%clk 0:03:00.5]} 11... Nxc3 {[%clk 0:02:41.8]} 12. bxc3 {[%clk 0:03:00.7]}
12... c5 {[%clk 0:02:42.5]} 13. Bf4 {[%clk 0:02:58.1]} 13... cxd4 {[%clk
0:02:40.7]} 14. cxd4 {[%clk 0:02:56.9]} 14... Nf6 {[%clk 0:02:36.2]} 15. Ne5
{[%clk 0:02:56.9]} 15... Bxg2 {[%clk 0:02:36.8]} 16. Kxg2 {[%clk 0:02:58.8]}
16... Qd5+ {[%clk 0:02:36.3]} 17. Qxd5 {[%clk 0:02:55.7]} 17... Nxd5 {[%clk
0:02:38.2]} 18. Nc6 {[%clk 0:02:56.7]} 18... Nxf4+ {[%clk 0:02:28.6]} 19. gxf4
{[%clk 0:02:56.6]} 19... Bd6 {[%clk 0:02:30.2]} 20. Kf3 {[%clk 0:02:51.9]} 20...
Rfc8 {[%clk 0:02:29.7]} 21. Rac1 {[%clk 0:02:52.2]} 21... Kf8 {[%clk 0:02:29.6]}
22. e4 {[%clk 0:02:49]} 22... Rc7 {[%clk 0:02:29.5]} 23. Rd3 {[%clk 0:02:09]}
23... Rac8 {[%clk 0:02:27.7]} 24. Rdc3 {[%clk 0:02:09.6]} 24... Ke8 {[%clk
0:02:12.1]} 25. d5 {[%clk 0:01:59.1]} 25... b5 {[%clk 0:01:20.6]} 26. e5 {[%clk
0:01:52.2]} 26... Bb4 {[%clk 0:01:21.2]} 27. Rb3 {[%clk 0:01:03.4]} 27... exd5
{[%clk 0:01:16.7]} 28. Rxb4 {[%clk 0:01:03.5]} 28... Rxc6 {[%clk 0:01:17.7]} 29.
Rxc6 {[%clk 0:01:04.9]} 29... Rxc6 {[%clk 0:01:19.6]} 30. Rxb5 {[%clk
0:01:06.3]} 30... Ra6 {[%clk 0:01:17.9]} 31. Rb7 {[%clk 0:00:48.2]} 31... Rxa2
{[%clk 0:01:15.1]} 32. f5 {[%clk 0:00:49.6]} 32... Ra4 {[%clk 0:00:40.2]} 33.
Kg3 {[%clk 0:00:42.2]} 33... d4 {[%clk 0:00:30.2]} 34. e6 {[%clk 0:00:38.3]}
34... fxe6 {[%clk 0:00:29.4]} 35. fxe6 {[%clk 0:00:40.2]} 35... d3 {[%clk
0:00:27.8]} 36. Rd7 {[%clk 0:00:28.5]} 36... Re4 {[%clk 0:00:27.9]} 37. Rxd3
{[%clk 0:00:25.8]} 37... Rxe6 {[%clk 0:00:28.6]} 38. Ra3 {[%clk 0:00:25.4]}
38... a6 {[%clk 0:00:30.1]} 39. Rb3 {[%clk 0:00:25.8]} 39... Kf7 {[%clk
0:00:22.6]} 40. h4 {[%clk 0:00:22]} 40... h5 {[%clk 0:00:23.4]} 41. Kf4 {[%clk
0:00:21]} 41... Kf6 {[%clk 0:00:23.9]} 42. Rb7 {[%clk 0:00:20.6]} 42... Rc6
{[%clk 0:00:24.7]} 43. Ra7 {[%clk 0:00:21.1]} 43... Rc4+ {[%clk 0:00:25.7]} 44.
Kg3 {[%clk 0:00:22.4]} 44... Ra4 {[%clk 0:00:26.8]} 45. f3 {[%clk 0:00:23.1]}
45... g6 {[%clk 0:00:27.8]} 46. Kh3 {[%clk 0:00:23.2]} 46... Ra1 {[%clk
0:00:28]} 47. Kg3 {[%clk 0:00:24.2]} 47... Ke6 {[%clk 0:00:29.5]} 48. Kf4 {[%clk
0:00:25.2]} 48... Kf6 {[%clk 0:00:30.7]} 49. Ra8 {[%clk 0:00:25.3]} 49... a5
{[%clk 0:00:31.4]} 50. Ra6+ {[%clk 0:00:25.8]} 50... Kg7 {[%clk 0:00:32.6]} 51.
Kg5 {[%clk 0:00:25.4]} 51... Rg1+ {[%clk 0:00:32.5]} 52. Kf4 {[%clk 0:00:26.8]}
52... Rh1 {[%clk 0:00:33.6]} 53. Kg5 {[%clk 0:00:27.5]} 53... Rg1+ {[%clk
0:00:33.3]} 54. Kf4 {[%clk 0:00:28.7]} 54... Ra1 {[%clk 0:00:34.8]} 55. Kg5
{[%clk 0:00:29.7]} 55... Rg1+ {[%clk 0:00:34]} 56. Kf4 {[%clk 0:00:30.8]} 56...
Kh6 {[%clk 0:00:32.7]} 57. Rxa5 {[%clk 0:00:27.7]} 57... Rg2 {[%clk 0:00:33.5]}
58. Ra8 {[%clk 0:00:27.4]} 58... Rg1 {[%clk 0:00:32.9]} 59. Ra7 {[%clk
0:00:27.9]} 59... Rh1 {[%clk 0:00:32.7]} 60. Kg3 {[%clk 0:00:28.9]} 60... Rg1+
{[%clk 0:00:33.7]} 61. Kh2 {[%clk 0:00:29]} 61... Rc1 {[%clk 0:00:32.4]} 62. Kg2
{[%clk 0:00:29.6]} 1/2-1/2

[Event "*** Titled Tuesday Blitz"]
[Site "Chess.com"]
[Date "2018.11.06"]
[Round "1"]
[White "Sanan_Sjugirov"]
[Black "RichardLeyvaP"]
[Result "1-0"]
[WhiteElo "2878"]
[BlackElo "2449"]
[TimeControl "180+2"]
[EndTime "13:09:44 PST"]
[Termination "Sanan_Sjugirov won by resignation"]

1. e4 {[%clk 0:03:01.9]} 1... e5 {[%clk 0:03:00.4]} 2. Nf3 {[%clk 0:03:02]} 2...
Nc6 {[%clk 0:03:01.4]} 3. Bb5 {[%clk 0:03:02.4]} 3... a6 {[%clk 0:03:01.5]} 4.
Ba4 {[%clk 0:03:03.4]} 4... Nf6 {[%clk 0:03:02.6]} 5. O-O {[%clk 0:03:03.1]}
5... Be7 {[%clk 0:03:03.7]} 6. Bxc6 {[%clk 0:02:58.6]} 6... dxc6 {[%clk
0:03:02.4]} 7. d3 {[%clk 0:02:59.5]} 7... Nd7 {[%clk 0:02:54.6]} 8. b3 {[%clk
0:02:57]} 8... c5 {[%clk 0:02:51.8]} 9. Bb2 {[%clk 0:02:56.6]} 9... Bd6 {[%clk
0:02:52.8]} 10. Nbd2 {[%clk 0:02:52]} 10... f6 {[%clk 0:02:12.7]} 11. Nh4 {[%clk
0:02:46]} 11... O-O {[%clk 0:02:02.5]} 12. Nf5 {[%clk 0:02:45.3]} 12... Nb8
{[%clk 0:01:55]} 13. Qg4 {[%clk 0:02:29]} 13... g6 {[%clk 0:01:52.1]} 14. Qg3
{[%clk 0:02:27.4]} 14... Nc6 {[%clk 0:01:51.1]} 15. Nc4 {[%clk 0:02:18]} 15...
Kh8 {[%clk 0:01:50.6]} 16. Nfxd6 {[%clk 0:02:13.4]} 16... cxd6 {[%clk
0:01:52.5]} 17. f4 {[%clk 0:02:13.5]} 17... b5 {[%clk 0:01:51.4]} 18. Ne3 {[%clk
0:02:08.7]} 18... Be6 {[%clk 0:01:46.9]} 19. Rf2 {[%clk 0:02:07.4]} 19... Nd4
{[%clk 0:01:37.1]} 20. Raf1 {[%clk 0:02:06]} 20... Qe7 {[%clk 0:01:38.1]} 21.
Qh4 {[%clk 0:01:43.6]} 21... g5 {[%clk 0:01:21.9]} 22. fxg5 {[%clk 0:01:31.2]}
22... fxg5 {[%clk 0:01:23.8]} 23. Qh6 {[%clk 0:01:24.9]} 23... Rxf2 {[%clk
0:01:19.8]} 24. Rxf2 {[%clk 0:01:26.8]} 24... Qg7 {[%clk 0:01:18.4]} 25. Qh5
{[%clk 0:01:24.6]} 25... Kg8 {[%clk 0:01:12]} 26. c3 {[%clk 0:00:48.8]} 26...
Nc6 {[%clk 0:01:11.4]} 27. Bc1 {[%clk 0:00:50]} 27... Rf8 {[%clk 0:01:02.7]} 28.
Rxf8+ {[%clk 0:00:50]} 28... Kxf8 {[%clk 0:01:04.6]} 29. Nf5 {[%clk 0:00:42]}
29... Bxf5 {[%clk 0:01:02.5]} 30. exf5 {[%clk 0:00:43.9]} 30... Ne7 {[%clk
0:00:46.7]} 31. g4 {[%clk 0:00:38.1]} 31... h6 {[%clk 0:00:30.4]} 32. h4 {[%clk
0:00:38.7]} 32... e4 {[%clk 0:00:31.4]} 33. hxg5 {[%clk 0:00:36.7]} 33... Qxc3
{[%clk 0:00:28]} 34. Qxh6+ {[%clk 0:00:30.8]} 34... Ke8 {[%clk 0:00:28.9]} 35.
g6 {[%clk 0:00:26.8]} 35... Qxd3 {[%clk 0:00:21.2]} 36. g7 {[%clk 0:00:06.3]}
36... Qd1+ {[%clk 0:00:20.6]} 37. Kf2 {[%clk 0:00:06.8]} 37... Qf3+ {[%clk
0:00:20.6]} 38. Ke1 {[%clk 0:00:08.2]} 38... Qxg4 {[%clk 0:00:21.7]} 39. f6
{[%clk 0:00:08.4]} 39... Qg3+ {[%clk 0:00:20.8]} 40. Kd1 {[%clk 0:00:09.1]}
40... Qd3+ {[%clk 0:00:21.2]} 41. Bd2 {[%clk 0:00:10.4]} 41... Qb1+ {[%clk
0:00:21]} 42. Ke2 {[%clk 0:00:11.8]} 42... Qd3+ {[%clk 0:00:22.2]} 43. Ke1
{[%clk 0:00:13.2]} 43... Qg3+ {[%clk 0:00:23.2]} 44. Kd1 {[%clk 0:00:14.6]}
44... Ng8 {[%clk 0:00:13.8]} 45. Qh5+ {[%clk 0:00:13.4]} 45... Kd7 {[%clk
0:00:14.8]} 46. Qf7+ {[%clk 0:00:13.5]} 46... Kc6 {[%clk 0:00:15.1]} 47. Qxg8
{[%clk 0:00:13.3]} 47... e3 {[%clk 0:00:13.1]} 48. Qc8+ {[%clk 0:00:13.1]} 48...
Kb6 {[%clk 0:00:12.8]} 49. Qd8+ {[%clk 0:00:12.9]} 49... Kc6 {[%clk 0:00:13]}
50. Qc8+ {[%clk 0:00:13.7]} 50... Kb6 {[%clk 0:00:14.1]} 51. Qb8+ {[%clk
0:00:14.2]} 51... Kc6 {[%clk 0:00:15.1]} 52. Qe8+ {[%clk 0:00:15.8]} 52... Kb6
{[%clk 0:00:16.1]} 53. Qxe3 {[%clk 0:00:16.7]} 53... Qg4+ {[%clk 0:00:14.3]} 54.
Kc1 {[%clk 0:00:16.9]} 1-0